bitfinex/quotes_BTCUSD_20250730
["timestamp","ask_amount","ask_price","bid_price","bid_amount"]
[1753840545211,0.36853138,118140.0,118130.0,0.3985939]
[1753840546984,0.36006742,118140.0,118130.0,0.3985939]
[1753840547184,0.36006742,118140.0,118130.0,0.4143939]
[1753840549726,0.36006742,118140.0,118130.0,0.19744806]
[1753840550073,0.36006742,118140.0,118130.0,0.4299939]
[1753840550915,0.36006742,118140.0,118130.0,0.55825085]
[1753840550916,0.3406384,118140.0,118130.0,0.55825085]
[1753840551121,0.3406384,118140.0,118130.0,0.79079669]
[1753840551344,0.3406384,118140.0,118130.0,0.55825085]
[1753840551897,0.3406384,118140.0,118130.0,0.79079669]
[1753840552938,0.3406384,118140.0,118130.0,0.55825085]
[1753840559033,0.3406384,118140.0,118130.0,0.32570501]
[1753840559240,0.3406384,118140.0,118130.0,0.55825085]
[1753840560029,0.3406384,118140.0,118130.0,0.32570501]
[1753840560233,0.3406384,118140.0,118130.0,0.55825085]
[1753840560443,0.62843876,118140.0,118130.0,0.26385501]
[1753840560633,0.39589292,118140.0,118130.0,0.26385501]
[1753840561241,0.3654384,118140.0,118130.0,0.26385501]
[1753840561655,0.3426184,118140.0,118130.0,0.28814501]
[1753840562079,0.3426184,118140.0,118130.0,0.52069085]
[1753840563649,0.6064482,118140.0,118130.0,0.22007536]
[1753840563860,0.39286236,118140.0,118130.0,0.26385501]
[1753840564065,0.39286228,118140.0,118130.0,0.26385501]
[1753840564549,5.19933132,118140.0,118130.0,0.00415806]
[1753840564783,5.21543197,118140.0,118130.0,0.13555806]
[1753840564990,5.19585503,118140.0,118130.0,0.13555806]
[1753840565192,4.96330919,118140.0,118130.0,0.13555806]
[1753840565402,5.21784552,118140.0,118130.0,0.13555806]
[1753840565616,5.20938128,118140.0,118130.0,0.13555806]
[1753840565846,5.26680434,118140.0,118130.0,0.13555806]
[1753840566482,5.23586092,118140.0,118130.0,0.13255806]
[1753840567772,5.23586092,118140.0,118130.0,0.00115806]
[1753840568463,5.36726092,118140.0,118130.0,0.00115806]
[1753840568889,5.21243883,118140.0,118130.0,0.00115806]
[1753840570000,5.30313648,118140.0,118130.0,0.00115806]
[1753840570211,5.38761378,118140.0,118130.0,0.00115806]
[1753840571883,5.38861378,118140.0,118130.0,0.00115806]
[1753840574988,5.38961378,118140.0,118130.0,0.00115806]
[1753840575433,5.72821378,118140.0,118130.0,0.00115806]
[1753840577651,5.41794419,118140.0,118130.0,0.00115806]
[1753840577869,5.33346689,118140.0,118130.0,0.00115806]
[1753840578088,5.63772232,118140.0,118130.0,0.00115806]
[1753840579672,5.32745273,118140.0,118130.0,0.00115806]
[1753840579890,5.63772232,118140.0,118130.0,0.00115806]
[1753840581746,1.52805432,118140.0,118130.0,0.00115806]
[1753840581893,5.66420196,118140.0,118130.0,0.00115806]
[1753840582092,5.69465648,118140.0,118130.0,0.00115806]
[1753840583628,5.38438689,118140.0,118130.0,0.00115806]
[1753840583856,5.69465648,118140.0,118130.0,0.00115806]
[1753840585379,5.61423613,118140.0,118130.0,0.02757806]
[1753840585582,5.67270197,118140.0,118130.0,0.04657806]
[1753840585784,5.67270197,118140.0,118130.0,0.03067806]
[1753840586006,1.56303397,118140.0,118130.0,0.03067806]
[1753840586211,5.67270197,118140.0,118130.0,0.03067806]
[1753840586418,5.58822467,118140.0,118130.0,0.03067806]
[1753840588901,5.6336297,118140.0,118130.0,0.03067806]
[1753840591002,5.55600832,118140.0,118130.0,0.03067806]
[1753840592047,5.55600832,118140.0,118130.0,0.02757806]
[1753840592736,5.78865653,118140.0,118130.0,0.02757806]
[1753840593551,5.81911105,118140.0,118130.0,0.02757806]
[1753840594579,5.84559069,118140.0,118130.0,0.02757806]
[1753840595418,1.73592269,118140.0,118130.0,0.02757806]
[1753840595618,5.84559069,118140.0,118130.0,0.02757806]
[1753840596450,5.86389031,118140.0,118130.0,0.02757806]
[1753840598916,1.70881728,118140.0,118130.0,0.02757806]
[1753840599128,5.81848528,118140.0,118130.0,0.02757806]
[1753840600326,5.81848528,118140.0,118130.0,0.02552806]
[1753840600553,1.70881728,118140.0,118130.0,0.02552806]
[1753840600749,5.81848528,118140.0,118130.0,0.02552806]
[1753840601268,5.90296258,118140.0,118130.0,0.02552806]
[1753840603095,5.90296258,118140.0,118130.0,0.00115806]
[1753840603305,5.92684258,118140.0,118130.0,0.00115806]
[1753840605994,5.92684258,118140.0,118130.0,0.02552806]
[1753840606358,5.90296258,118140.0,118130.0,0.02552806]
[1753840606557,5.81848528,118140.0,118130.0,0.04172806]
[1753840611125,5.81848528,118140.0,118130.0,0.01735806]
[1753840611344,5.81848528,118140.0,118130.0,0.00115806]
[1753840611345,5.94496258,118140.0,118130.0,0.00115806]
[1753840611562,5.96016258,118140.0,118130.0,0.00115806]
[1753840611778,6.04463988,118140.0,118130.0,0.00115806]
[1753840616793,6.02943988,118140.0,118130.0,0.00115806]
[1753840618132,6.05136023,118140.0,118130.0,0.00115806]
[1753840618339,6.20136023,118140.0,118130.0,0.00115806]
[1753840621374,2.09169223,118140.0,118130.0,0.00115806]
[1753840621587,6.20136023,118140.0,118130.0,0.00115806]
[1753840622287,6.48492844,118140.0,118130.0,0.00115806]
[1753840623961,6.53492844,118140.0,118130.0,0.00115806]
[1753840624186,6.55778903,118140.0,118130.0,0.00115806]
[1753840624667,6.53492844,118140.0,118130.0,0.00115806]
[1753840625169,6.55778903,118140.0,118130.0,0.00115806]
[1753840627570,5.8588444,118140.0,118130.0,0.00115806]
[1753840627792,6.55678903,118140.0,118130.0,0.00115806]
[1753840628214,6.55978903,118140.0,118130.0,0.00115806]
[1753840628430,6.53592844,118140.0,118130.0,0.00115806]
[1753840628631,6.53892844,118140.0,118130.0,0.00115806]
[1753840629882,6.56178903,118140.0,118130.0,0.00115806]
[1753840630102,5.16858274,118110.0,118100.0,0.05814]
[1753840630319,5.74945968,118110.0,118100.0,0.03657]
[1753840630462,5.8643915,118110.0,118100.0,0.03657]
[1753840630874,5.8643915,118110.0,118100.0,0.06024]
[1753840631133,5.8643915,118110.0,118100.0,0.04424]
[1753840631289,5.86443989,118110.0,118100.0,0.04524]
[1753840631912,5.86443989,118110.0,118100.0,0.06154]
[1753840632681,5.86543989,118110.0,118100.0,0.06154]
[1753840634767,5.63279168,118110.0,118100.0,0.06154]
[1753840634944,5.54831438,118110.0,118100.0,0.06154]
[1753840635298,5.78096259,118110.0,118100.0,0.06154]
[1753840635713,5.78096259,118110.0,118100.0,0.06054]
[1753840637308,1.67129459,118110.0,118100.0,0.06054]
[1753840637521,1.75577189,118110.0,118100.0,0.06054]
[1753840637739,5.86543989,118110.0,118100.0,0.06054]
[1753840639278,5.63279168,118110.0,118100.0,0.06054]
[1753840639496,5.86543989,118110.0,118100.0,0.06054]
[1753840641727,5.63279168,118110.0,118100.0,0.06054]
[1753840641857,5.86543989,118110.0,118100.0,0.06054]
[1753840646610,5.86741989,118110.0,118100.0,0.06054]
[1753840647838,1.75775189,118110.0,118100.0,0.06054]
[1753840648250,5.86741989,118110.0,118100.0,0.06054]
[1753840649249,5.88486891,118110.0,118100.0,0.05527]
[1753840649455,5.90874891,118110.0,118100.0,0.0153]
[1753840650072,0.51781526,118100.0,118090.0,0.06037]
[1753840650274,5.41448877,118100.0,118090.0,0.06239]
[1753840650500,5.47142293,118100.0,118090.0,0.06239]
[1753840651876,5.26433455,118100.0,118090.0,0.06239]
[1753840652089,5.49698276,118100.0,118090.0,0.06239]
[1753840653111,5.49897276,118100.0,118090.0,0.06239]
[1753840655380,1.38930476,118100.0,118090.0,0.06239]
[1753840655613,5.49897276,118100.0,118090.0,0.06239]
[1753840655919,5.49897276,118100.0,118090.0,0.04077]
[1753840656163,5.83997827,118100.0,118090.0,0.0163]
[1753840657424,1.73031027,118100.0,118090.0,0.0163]
[1753840657623,5.83997827,118100.0,118090.0,0.0163]
[1753840659098,5.83997827,118100.0,118080.0,0.06067]
[1753840659099,0.53527934,118090.0,118080.0,0.06067]
[1753840659328,5.12376735,118090.0,118080.0,0.06269]
[1753840659539,5.15024699,118090.0,118080.0,0.06269]
[1753840660940,5.15871489,118090.0,118080.0,0.06269]
[1753840661360,5.15871489,118090.0,118080.0,0.06469]
[1753840661567,1.04904689,118090.0,118080.0,0.06569]
[1753840661788,5.15871489,118090.0,118080.0,0.06569]
[1753840662613,4.92606668,118090.0,118080.0,0.06569]
[1753840662820,5.15871489,118090.0,118080.0,0.06569]
[1753840665885,4.91759878,118090.0,118080.0,0.06569]
[1753840666519,5.15024699,118090.0,118080.0,0.06569]
[1753840667066,5.15024699,118090.0,118080.0,0.06369]
[1753840667588,5.15124699,118090.0,118080.0,0.06269]
[1753840668163,5.14277902,118090.0,118080.0,0.06269]
[1753840668584,4.91013081,118090.0,118080.0,0.06269]
[1753840669012,5.29660811,118090.0,118080.0,0.0331]
[1753840669220,5.86785632,118090.0,118080.0,0.05632]
[1753840671156,5.66102811,118090.0,118080.0,0.0166]
[1753840671362,5.89367632,118090.0,118080.0,0.0166]
[1753840673708,6.33737632,118090.0,118080.0,0.0166]
[1753840675913,6.33443632,118090.0,118080.0,0.0325]
[1753840676053,6.33443632,118090.0,118080.0,0.05572]
[1753840677154,0.0428568,118070.0,118060.0,0.15088]
[1753840677371,0.0428568,118070.0,118060.0,0.25425821]
[1753840677580,0.09892799,118070.0,118060.0,0.29277821]
[1753840677995,0.0428568,118070.0,118060.0,0.29277821]
[1753840678386,0.03438732,118070.0,118060.0,0.29377821]
[1753840678583,0.03438732,118070.0,118060.0,0.29577821]
[1753840679253,0.04285672,118070.0,118060.0,0.29577821]
[1753840679658,0.03438732,118070.0,118060.0,0.29577821]
[1753840680113,0.11120096,118070.0,118060.0,0.29577821]
[1753840680961,0.10273156,118070.0,118060.0,0.29577821]
[1753840681194,0.03438732,118070.0,118060.0,0.29577821]
[1753840681370,0.04376091,118070.0,118060.0,0.29577821]
[1753840682333,0.04376091,118070.0,118060.0,0.06313]
[1753840682546,0.05223031,118070.0,118060.0,0.29577821]
[1753840682752,0.04376091,118070.0,118060.0,0.29577821]
[1753840683346,0.05223031,118070.0,118060.0,0.29577821]
[1753840683778,0.04376091,118070.0,118060.0,0.29577821]
[1753840684871,0.02682261,118070.0,118060.0,0.52842642]
[1753840685083,0.00937359,118070.0,118060.0,0.10690965]
[1753840685287,0.00937359,118070.0,118060.0,0.57220607]
[1753840685495,4.109668,118070.0,118060.0,0.57130607]
[1753840686126,0.00917422,118070.0,118060.0,0.57130607]
[1753840686335,0.00917422,118070.0,118060.0,0.65578337]
[1753840686553,0.34846818,118080.0,118070.0,0.0325]
[1753840686762,4.45813618,118080.0,118070.0,0.39630821]
[1753840686949,4.449668,118080.0,118070.0,0.42453821]
[1753840687388,4.449668,118080.0,118070.0,0.19189]
[1753840687535,4.45813633,118080.0,118070.0,0.42453821]
[1753840687737,4.449668,118080.0,118070.0,0.42453821]
[1753840687921,4.45813626,118080.0,118070.0,0.42453821]
[1753840688670,4.46660459,118080.0,118070.0,0.42453821]
[1753840689014,4.47562432,118080.0,118070.0,0.19189]
[1753840689229,4.5770387,118080.0,118070.0,0.42453821]
[1753840689428,4.5770392,118080.0,118070.0,0.42453821]
[1753840691000,4.5770392,118080.0,118070.0,0.19189]
[1753840691196,4.5770392,118080.0,118070.0,0.42453821]
[1753840692330,4.73794756,118080.0,118070.0,0.19189]
[1753840692538,4.73794756,118080.0,118070.0,0.42453821]
[1753840693599,4.47562481,118080.0,118070.0,0.42453821]
[1753840693799,4.48409357,118080.0,118070.0,0.42453821]
[1753840695944,4.47562481,118080.0,118070.0,0.42453821]
[1753840696096,4.4840935,118080.0,118070.0,0.42453821]
[1753840697843,4.49256226,118080.0,118070.0,0.42453821]
[1753840698454,4.64500187,118080.0,118070.0,0.42453821]
[1753840698654,4.77608187,118080.0,118070.0,0.42453821]
[1753840699277,4.77608187,118080.0,118070.0,0.19189]
[1753840699483,4.79551089,118080.0,118070.0,0.42453821]
[1753840699655,4.88007339,118080.0,118070.0,0.16366]
[1753840700266,0.74682539,118080.0,118070.0,0.18821]
[1753840700470,4.85649339,118080.0,118070.0,0.18821]
[1753840701077,4.85649339,118080.0,118070.0,0.16366]
[1753840701078,4.88007339,118080.0,118070.0,0.16366]
[1753840701496,4.8716047,118080.0,118070.0,0.39630821]
[1753840701719,4.8716047,118080.0,118070.0,0.16366]
[1753840701949,5.2102047,118080.0,118070.0,0.16366]
[1753840702158,5.44285291,118080.0,118070.0,0.16366]
[1753840702584,5.2102047,118080.0,118070.0,0.16366]
[1753840702994,5.2102047,118080.0,118070.0,0.14766]
[1753840703229,5.2102047,118080.0,118070.0,0.0165]
[1753840703446,5.2131647,118080.0,118070.0,0.0165]
[1753840704768,5.44581291,118080.0,118070.0,0.0165]
[1753840705033,5.2131647,118080.0,118070.0,0.0165]
[1753840706445,0.0084694,118070.0,118060.0,0.18733]
[1753840706657,0.12790658,118070.0,118060.0,0.16278]
[1753840706889,0.0684273,118070.0,118060.0,0.39542821]
[1753840707112,0.04484701,118070.0,118060.0,0.41997821]
[1753840707333,0.04484673,118070.0,118060.0,0.42203821]
[1753840707548,0.04484673,118070.0,118060.0,0.42498821]
[1753840707722,0.05331628,118070.0,118060.0,0.42498821]
[1753840707878,0.05331628,118070.0,118060.0,0.42698821]
[1753840708685,0.05331628,118070.0,118060.0,0.42798821]
[1753840709095,0.28576371,118070.0,118060.0,0.19534]
[1753840709317,0.27729459,118070.0,118060.0,0.42798821]
[1753840710156,0.21423819,118070.0,118060.0,0.42798821]
[1753840710381,0.04484716,118070.0,118060.0,0.19534]
[1753840710608,0.04484716,118070.0,118060.0,0.42798821]
[1753840711436,0.04484716,118070.0,118060.0,0.19534]
[1753840711591,0.21423819,118070.0,118060.0,0.19534]
[1753840712125,0.21423819,118070.0,118060.0,0.42297821]
[1753840713051,0.04484716,118070.0,118060.0,0.42297821]
[1753840713388,0.04484716,118070.0,118060.0,0.42503821]
[1753840713591,0.04484716,118070.0,118060.0,0.42798821]
[1753840715064,0.21423812,118070.0,118060.0,0.19534]
[1753840715268,0.21423812,118070.0,118060.0,0.05925]
[1753840715269,0.63024638,118070.0,118060.0,0.05925]
[1753840715480,0.99242638,118070.0,118060.0,0.17429]
[1753840715616,5.33474259,118070.0,118060.0,0.0187]
[1753840715816,5.33474259,118070.0,118060.0,0.134]
[1753840716304,5.33768259,118070.0,118060.0,0.133]
[1753840716708,5.39461675,118070.0,118060.0,0.002]
[1753840717681,4.9275435,118060.0,118050.0,7.9e-05]
[1753840717883,5.89843138,118060.0,118050.0,7.9e-05]
[1753840718094,6.03236138,118060.0,118050.0,7.9e-05]
[1753840718270,5.79971317,118060.0,118050.0,7.9e-05]
[1753840718683,5.81501317,118060.0,118050.0,7.9e-05]
[1753840718890,5.56706496,118060.0,118050.0,7.9e-05]
[1753840719301,5.87476957,118060.0,118050.0,7.9e-05]
[1753840719616,5.56413496,118060.0,118050.0,7.9e-05]
[1753840720074,5.56706496,118060.0,118050.0,7.9e-05]
[1753840720264,5.66694226,118060.0,118050.0,7.9e-05]
[1753840720727,5.63648774,118060.0,118050.0,7.9e-05]
[1753840720930,5.6100081,118060.0,118050.0,7.9e-05]
[1753840721114,5.6110081,118060.0,118050.0,7.9e-05]
[1753840721724,5.6080781,118060.0,118050.0,7.9e-05]
[1753840721932,5.5926781,118060.0,118050.0,7.9e-05]
[1753840722152,5.5690981,118060.0,118050.0,7.9e-05]
[1753840722358,5.5690981,118060.0,118050.0,0.040529]
[1753840722359,5.4846208,118060.0,118050.0,0.040529]
[1753840722761,5.49309085,118060.0,118050.0,0.061339]
[1753840723791,5.4846208,118060.0,118050.0,0.061339]
[1753840725619,5.26508367,118060.0,118050.0,0.37197361]
[1753840725835,5.09567794,118060.0,118050.0,0.37197361]
[1753840725980,4.95414813,118060.0,118050.0,0.37197361]
[1753840726573,5.1150836,118060.0,118050.0,0.37197361]
[1753840726778,4.94567822,118060.0,118050.0,0.37197361]
[1753840727164,4.95414848,118060.0,118050.0,0.37197361]
[1753840727359,4.82314848,118060.0,118050.0,0.37197361]
[1753840727559,0.70551871,118060.0,118050.0,0.37197361]
[1753840727812,0.37398854,118060.0,118050.0,0.37197361]
[1753840728026,0.37398854,118060.0,118050.0,0.061339]
[1753840728264,0.71398854,118060.0,118050.0,0.37197361]
[1753840728436,0.71398854,118060.0,118050.0,0.061339]
[1753840728613,0.71398854,118060.0,118050.0,0.37197361]
[1753840728830,0.72245852,118060.0,118050.0,0.37197361]
[1753840729609,0.71398854,118060.0,118050.0,0.37197361]
[1753840730681,0.73092857,118060.0,118050.0,0.37197361]
[1753840730894,0.88339443,118060.0,118050.0,0.37197361]
[1753840731135,0.88339443,118060.0,118050.0,0.061339]
[1753840732419,0.88537443,118060.0,118050.0,0.061339]
[1753840732827,0.71596905,118060.0,118050.0,0.061339]
[1753840733412,0.72443924,118060.0,118050.0,0.061339]
[1753840734439,0.7329095,118060.0,118050.0,0.37197361]
[1753840735542,0.7329095,118060.0,118050.0,0.061339]
[1753840737331,0.71596862,118060.0,118050.0,0.061339]
[1753840737538,0.71398862,118060.0,118050.0,0.061339]
[1753840738130,0.72245867,118060.0,118050.0,0.061339]
[1753840739044,0.72245867,118060.0,118050.0,0.37197361]
[1753840740425,0.72245867,118060.0,118050.0,0.061339]
[1753840740625,0.72245867,118060.0,118050.0,0.37197361]
[1753840741681,0.7224586,118060.0,118050.0,0.37197361]
[1753840743878,0.73092865,118060.0,118050.0,0.37197361]
[1753840744610,0.74137891,118060.0,118050.0,0.061339]
[1753840744803,0.9023146,118060.0,118050.0,0.056329]
[1753840746871,1.00516199,118060.0,118050.0,7.9e-05]
[1753840747032,0.92068469,118060.0,118050.0,7.9e-05]
[1753840747248,0.91772469,118060.0,118050.0,7.9e-05]
[1753840747508,0.72443924,118060.0,118050.0,0.36523361]
[1753840747731,0.72443924,118060.0,118050.0,0.37051361]
[1753840747732,0.71596905,118060.0,118050.0,0.37051361]
[1753840747876,0.71596876,118060.0,118050.0,0.37051361]
[1753840748929,0.70749878,118060.0,118050.0,0.37051361]
[1753840750811,0.69704902,118060.0,118050.0,0.37051361]
[1753840751021,0.70551871,118060.0,118050.0,0.37051361]
[1753840751232,0.69704902,118060.0,118050.0,0.37051361]
[1753840757820,0.6796,118060.0,118050.0,0.41429326]
[1753840758047,0.6796,118060.0,118050.0,0.49877056]
[1753840758274,0.3396,118060.0,118050.0,0.49877056]
[1753840758486,0.6796,118060.0,118050.0,0.49877056]
[1753840758710,0.3396,118060.0,118050.0,0.49877056]
[1753840759949,0.3386,118060.0,118050.0,0.49877056]
[1753840760956,0.3386,118060.0,118050.0,0.50077056]
[1753840761370,0.3386,118060.0,118050.0,0.50177056]
[1753840767165,0.33409769,118060.0,118050.0,0.50177056]
[1753840778895,0.33409769,118060.0,118050.0,0.65672395]
[1753840780724,0.33607769,118060.0,118050.0,0.54999995]
[1753840781592,0.35995769,118060.0,118050.0,0.52652995]
[1753840782134,0.35995769,118060.0,118050.0,0.54999995]
[1753840782987,0.35995769,118060.0,118050.0,0.62766637]
[1753840783352,0.33607769,118060.0,118050.0,0.62766637]
[1753840783552,0.33607769,118060.0,118050.0,0.62775737]
[1753840788104,0.33607769,118060.0,118050.0,0.63285737]
[1753840788501,0.33607769,118060.0,118050.0,0.32239695]
[1753840788705,0.33607769,118060.0,118050.0,0.63285737]
[1753840788887,0.35995769,118060.0,118050.0,0.58848737]
[1753840789883,0.36289769,118060.0,118050.0,0.57268737]
[1753840790085,0.37929769,118060.0,118050.0,0.26222695]
[1753840790310,0.37929769,118060.0,118050.0,0.57268737]
[1753840791203,0.37929769,118060.0,118050.0,0.13142695]
[1753840791425,0.37929769,118060.0,118050.0,0.26218695]
[1753840792161,0.37929769,118060.0,118050.0,0.2184073]
[1753840792383,0.37929769,118060.0,118050.0,0.26218695]
[1753840792791,0.37929769,118060.0,118050.0,0.2184073]
[1753840793015,0.37929769,118060.0,118050.0,0.26218695]
[1753840793255,0.71929769,118060.0,118050.0,0.17770965]
[1753840793475,0.72776745,118060.0,118050.0,0.17770965]
[1753840793704,0.72776738,118060.0,118050.0,0.17770965]
[1753840794342,0.72776731,118060.0,118050.0,0.17770965]
[1753840794553,0.71929769,118060.0,118050.0,0.17770965]
[1753840797086,0.69995769,118060.0,118050.0,0.48817007]
[1753840797301,0.67607769,118060.0,118050.0,0.52684007]
[1753840798174,0.67607769,118060.0,118050.0,0.21637965]
[1753840798355,0.67607769,118060.0,118050.0,0.52684007]
[1753840798932,0.67607769,118060.0,118050.0,0.52982007]
[1753840799569,0.67607769,118060.0,118050.0,0.54749007]
[1753840801903,0.67607769,118060.0,118050.0,0.53189007]
[1753840803410,0.67607769,118060.0,118050.0,0.54769007]
[1753840804069,0.67409769,118060.0,118050.0,0.63216737]
[1753840804908,0.67409769,118060.0,118050.0,0.78733477]
[1753840806916,0.67409769,118060.0,118050.0,0.63215789]
[1753840809079,0.67409769,118060.0,118050.0,0.32170695]
[1753840809295,0.67409769,118060.0,118050.0,0.63215789]
[1753840813958,0.33409769,118060.0,118050.0,0.63215789]
[1753840814908,0.38132902,118090.0,118080.0,0.04377965]
[1753840815120,0.3833874,118090.0,118080.0,0.48487059]
[1753840815327,0.36593838,118090.0,118080.0,0.50067059]
[1753840815538,0.34205838,118090.0,118080.0,0.54539059]
[1753840816184,4.838e-05,118090.0,118080.0,0.54539059]
[1753840816396,0.00304838,118090.0,118080.0,0.54539059]
[1753840816607,0.00504838,118090.0,118080.0,0.23493965]
[1753840816830,0.00304838,118090.0,118080.0,0.54034059]
[1753840817511,0.00204838,118090.0,118080.0,0.54034059]
[1753840818387,0.00204838,118090.0,118080.0,0.22988965]
[1753840818609,0.00204838,118090.0,118080.0,0.52414059]
[1753840820345,0.00204838,118090.0,118080.0,0.39350059]
[1753840820564,0.00204838,118090.0,118080.0,0.52410059]
[1753840821440,0.00204838,118090.0,118080.0,0.54135059]
[1753840821678,0.00204838,118090.0,118080.0,0.54452059]
[1753840822381,4.838e-05,118090.0,118080.0,0.54452059]
[1753840824971,4.838e-05,118090.0,118080.0,0.62899789]
[1753840825184,4.838e-05,118090.0,118080.0,0.93944883]
[1753840825616,4.838e-05,118090.0,118080.0,0.94044883]
[1753840826655,4.838e-05,118090.0,118080.0,0.93944883]
[1753840826828,4.838e-05,118090.0,118080.0,0.94144883]
[1753840827833,4.838e-05,118090.0,118080.0,0.63099789]
[1753840828033,4.838e-05,118090.0,118080.0,0.63199789]
[1753840828389,4.838e-05,118090.0,118080.0,0.63099789]
[1753840828870,4.838e-05,118090.0,118080.0,1.31442552]
[1753840829081,4.838e-05,118090.0,118080.0,1.33336311]
[1753840829305,4.838e-05,118090.0,118080.0,1.3418318]
[1753840829508,4.838e-05,118090.0,118080.0,1.33336311]
[1753840829710,4.838e-05,118090.0,118080.0,1.3418318]
[1753840830133,4.838e-05,118090.0,118080.0,1.32289435]
[1753840830336,4.838e-05,118090.0,118080.0,1.31442552]
[1753840830549,4.838e-05,118090.0,118080.0,1.31942552]
[1753840830967,4.838e-05,118090.0,118080.0,1.32789435]
[1753840831168,4.838e-05,118090.0,118080.0,1.32589435]
[1753840831373,4.838e-05,118090.0,118080.0,1.32342552]
[1753840831584,4.838e-05,118090.0,118080.0,1.33189435]
[1753840832013,4.838e-05,118090.0,118080.0,1.32342552]
[1753840832221,4.838e-05,118090.0,118080.0,1.33189435]
[1753840832637,4.838e-05,118090.0,118080.0,1.34036311]
[1753840832816,4.838e-05,118090.0,118080.0,1.3488318]
[1753840833047,4.838e-05,118090.0,118080.0,1.34036311]
[1753840833469,4.838e-05,118090.0,118080.0,1.34883172]
[1753840833643,4.838e-05,118090.0,118080.0,1.3488318]
[1753840833852,4.838e-05,118090.0,118080.0,1.34036311]
[1753840834436,4.838e-05,118090.0,118080.0,1.3488318]
[1753840834851,4.838e-05,118090.0,118080.0,1.33189435]
[1753840836350,4.838e-05,118090.0,118080.0,1.32342552]
[1753840836548,4.838e-05,118090.0,118080.0,1.32334552]
[1753840837630,4.838e-05,118090.0,118080.0,1.15396883]
[1753840838747,4.838e-05,118090.0,118080.0,1.32334552]
[1753840840949,4.838e-05,118090.0,118080.0,1.15396883]
[1753840841991,4.838e-05,118090.0,118080.0,1.02344883]
[1753840842194,4.838e-05,118090.0,118080.0,1.15396883]
[1753840842398,4.838e-05,118090.0,118080.0,1.02344883]
[1753840842626,4.838e-05,118090.0,118080.0,1.15396883]
[1753840843415,4.838e-05,118090.0,118080.0,1.32334552]
[1753840844110,4.838e-05,118090.0,118080.0,1.34028296]
[1753840844430,4.838e-05,118090.0,118080.0,1.35722005]
[1753840844614,4.838e-05,118090.0,118080.0,1.36568838]
[1753840844818,4.838e-05,118090.0,118080.0,1.35662649]
[1753840845240,4.838e-05,118090.0,118080.0,1.34815809]
[1753840845466,4.838e-05,118090.0,118080.0,1.35662649]
[1753840845766,4.838e-05,118090.0,118080.0,1.35662656]
[1753840846253,4.838e-05,118090.0,118080.0,1.35662663]
[1753840846526,4.838e-05,118090.0,118080.0,1.36509503]
[1753840846768,4.838e-05,118090.0,118080.0,1.36509467]
[1753840846997,4.838e-05,118090.0,118080.0,1.33122065]
[1753840847227,4.838e-05,118090.0,118080.0,1.33122072]
[1753840847643,4.838e-05,118090.0,118080.0,1.33968941]
[1753840847858,4.838e-05,118090.0,118080.0,1.33122072]
[1753840848340,4.838e-05,118090.0,118080.0,1.32275196]
[1753840850167,4.838e-05,118090.0,118080.0,1.33122079]
[1753840850412,4.838e-05,118090.0,118080.0,1.33968955]
[1753840850645,4.838e-05,118090.0,118080.0,1.34815824]
[1753840850898,4.838e-05,118090.0,118080.0,1.36509525]
[1753840851138,4.838e-05,118090.0,118080.0,1.36509475]
[1753840851622,4.838e-05,118090.0,118080.0,1.36509482]
[1753840851804,4.838e-05,118090.0,118080.0,1.35662642]
[1753840852465,4.838e-05,118090.0,118080.0,1.36509482]
[1753840852731,4.838e-05,118090.0,118080.0,1.35662642]
[1753840852976,4.838e-05,118090.0,118080.0,1.33968941]
[1753840853210,4.838e-05,118090.0,118080.0,1.33122079]
[1753840854136,4.838e-05,118090.0,118080.0,1.32275196]
[1753840854559,4.838e-05,118090.0,118080.0,1.33122079]
[1753840855541,4.838e-05,118090.0,118080.0,1.32275196]
[1753840855776,4.838e-05,118090.0,118080.0,1.02285527]
[1753840856008,4.838e-05,118090.0,118080.0,1.15333527]
[1753840857071,4.838e-05,118090.0,118080.0,1.02285527]
[1753840857280,4.838e-05,118090.0,118080.0,1.15333527]
[1753840861582,0.00202838,118090.0,118080.0,0.44911433]
[1753840861796,0.02536838,118090.0,118080.0,0.78307433]
[1753840862019,0.02832838,118090.0,118080.0,0.78307433]
[1753840862224,0.02832838,118090.0,118080.0,0.77807433]
[1753840862657,0.02832838,118090.0,118080.0,0.77207433]
[1753840862658,0.02536838,118090.0,118080.0,0.77207433]
[1753840862861,0.02536838,118090.0,118080.0,0.77507433]
[1753840863071,0.02536838,118090.0,118080.0,0.64763433]
[1753840863272,0.02832838,118090.0,118080.0,0.46762339]
[1753840863488,0.02832838,118090.0,118080.0,0.64763433]
[1753840863701,0.02832838,118090.0,118080.0,0.46762339]
[1753840863909,0.02832838,118090.0,118080.0,0.77507433]
[1753840864353,0.02832838,118090.0,118080.0,0.77707433]
[1753840865370,0.02536838,118090.0,118080.0,0.77707433]
[1753840866327,0.04056838,118090.0,118080.0,0.60344824]
[1753840866549,0.04352838,118090.0,118080.0,0.64663433]
[1753840866746,0.05912838,118090.0,118080.0,0.33618339]
[1753840867000,0.05912838,118090.0,118080.0,0.46662339]
[1753840870113,0.05912838,118090.0,118080.0,0.77707433]
[1753840871519,0.05912838,118090.0,118080.0,0.46662339]
[1753840872207,0.05912838,118090.0,118080.0,0.33618339]
[1753840872419,0.0895829,118090.0,118080.0,0.46662339]
[1753840872622,0.05912838,118090.0,118080.0,0.46662339]
[1753840873261,0.05912838,118090.0,118080.0,0.46362339]
[1753840873471,0.39912838,118090.0,118080.0,0.46362339]
[1753840873681,0.39912838,118090.0,118080.0,0.46262339]
[1753840874985,0.05912838,118090.0,118080.0,0.46262339]
[1753840876957,0.05912838,118090.0,118080.0,0.4194373]
[1753840877167,0.05912838,118090.0,118080.0,0.37814609]
[1753840877752,0.05912838,118090.0,118080.0,0.33496]
[1753840878156,0.05912838,118090.0,118080.0,0.37814609]
[1753840878734,0.05912838,118090.0,118080.0,0.33496]
[1753840879374,0.05912838,118090.0,118080.0,0.37814609]
[1753840879951,0.05912838,118090.0,118080.0,0.33496]
[1753840880347,0.05912838,118090.0,118080.0,0.37814609]
[1753840881342,0.73549588,118090.0,118080.0,0.37814609]
[1753840881525,0.74396356,118090.0,118080.0,0.37814609]
[1753840881733,0.43351262,118090.0,118080.0,0.37814609]
[1753840882518,4.90102195,118090.0,118080.0,0.33396]
[1753840882770,0.3557,118080.0,118070.0,0.04318609]
[1753840882990,0.40145644,118080.0,118070.0,0.17362609]
[1753840883430,0.41715644,118080.0,118070.0,0.17362609]
[1753840883869,0.41715644,118080.0,118070.0,0.17462609]
[1753840884297,0.42562484,118080.0,118070.0,0.17462609]
[1753840884532,0.41715644,118080.0,118070.0,0.17462609]
[1753840884745,0.42562477,118080.0,118070.0,0.17462609]
[1753840885370,0.40022,118080.0,118070.0,0.17462609]
[1753840885804,0.40868833,118080.0,118070.0,0.17462609]
[1753840886237,0.4171568,118080.0,118070.0,0.17462609]
[1753840886467,0.43460582,118080.0,118070.0,0.17462609]
[1753840886678,0.42613735,118080.0,118070.0,0.17462609]
[1753840887199,0.43460582,118080.0,118070.0,0.17462609]
[1753840887612,0.42613735,118080.0,118070.0,0.17462609]
[1753840888362,0.44307429,118080.0,118070.0,0.17462609]